bitfinex/quotes_BTCUSD_20220103
["timestamp","ask_amount","ask_price","bid_price","bid_amount"]
[1641170127606,4.97955123,47100.0,47099.0,0.00010954]
[1641170127808,4.97955123,47100.0,47097.0,0.00014606]
[1641170128007,4.97955123,47100.0,47098.0,0.0106183]
[1641170128265,4.97955123,47100.0,47098.0,0.0636983]
[1641170128464,4.97955123,47100.0,47098.0,0.1849343]
[1641170128667,0.59105403,47099.0,47098.0,0.174316]
[1641170128864,0.16643803,47099.0,47098.0,0.174316]
[1641170129065,4.97955123,47100.0,47098.0,0.1744438]
[1641170134207,4.97955123,47100.0,47098.0,0.17372083]
[1641170135006,4.97955123,47100.0,47098.0,0.1244438]
[1641170136360,4.97955123,47100.0,47098.0,0.1744438]
[1641170136962,4.97955123,47100.0,47099.0,0.04844831]
[1641170137164,5.00615875,47100.0,47099.0,0.04844831]
[1641170140441,5.59863166,47100.0,47099.0,0.04844831]
[1641170142842,5.00615875,47100.0,47099.0,0.04844831]
[1641170143659,5.00615875,47100.0,47099.0,0.053079]
[1641170145056,5.00615875,47100.0,47098.0,0.1001278]
[1641170145254,4.97955123,47100.0,47098.0,0.1001278]
[1641170146656,0.00120806,47099.0,47098.0,0.0001278]
[1641170146857,1.56410606,47099.0,47098.0,0.0001278]
[1641170147109,1.66410606,47099.0,47098.0,0.0001278]
[1641170147309,0.0012523,47093.0,47092.0,0.00023735]
[1641170147512,0.3467503,47093.0,47092.0,0.00023735]
[1641170147711,0.67093079,47093.0,47092.0,0.00023735]
[1641170148312,0.72402879,47093.0,47092.0,0.00023735]
[1641170148712,0.72402879,47093.0,47087.0,0.00032864]
[1641170148713,0.32418049,47093.0,47087.0,0.00032864]
[1641170149511,0.64616687,47093.0,47087.0,0.00032864]
[1641170150616,0.64616687,47093.0,47086.0,0.24895283]
[1641170150617,1.31,47092.0,47086.0,0.24895283]
[1641170150863,0.00123085,47089.0,47086.0,0.24895283]
[1641170151862,0.05309383,47088.0,47086.0,0.24895283]
[1641170152263,0.05309383,47088.0,47087.0,0.275419]
[1641170152462,0.05309383,47088.0,47086.0,0.24895283]
[1641170152665,0.05309383,47088.0,47086.0,0.29895283]
[1641170152864,0.05309383,47088.0,47086.0,0.34895283]
[1641170153064,0.05309383,47088.0,47086.0,0.40204483]
[1641170154526,9.129e-05,47092.0,47087.0,0.31797002]
[1641170154722,9.129e-05,47092.0,47089.0,0.05308]
[1641170154920,9.129e-05,47092.0,47090.0,0.0474]
[1641170155122,9.129e-05,47092.0,47090.0,0.0974]
[1641170155422,9.129e-05,47092.0,47090.0,0.1474]
[1641170155823,9.129e-05,47092.0,47091.0,0.30708388]
[1641170156026,9.129e-05,47092.0,47091.0,0.35448388]
[1641170156824,0.00448029,47096.0,47091.0,0.45448388]
[1641170157022,0.00448029,47096.0,47092.0,0.053075]
[1641170157227,0.00448029,47096.0,47092.0,0.100475]
[1641170157523,0.00448029,47096.0,47093.0,0.05]
[1641170157722,0.00448029,47096.0,47093.0,0.1]
[1641170158123,0.00448029,47096.0,47093.0,0.05]
[1641170158356,0.05307538,47098.0,47094.0,0.053076]
[1641170158655,9.129e-05,47097.0,47095.0,0.053075]
[1641170159057,7.303e-05,47096.0,47095.0,0.103075]
[1641170160257,7.303e-05,47096.0,47095.0,0.209226]
[1641170160459,0.04815841,47098.0,47095.0,0.209226]
[1641170161260,0.04815841,47098.0,47096.0,0.0474]
[1641170161463,5.03262467,47100.0,47096.0,0.0474]
[1641170161662,4.97955123,47100.0,47097.0,0.10077479]
[1641170161863,4.97955123,47100.0,47098.0,0.0474]
[1641170162136,4.97955123,47100.0,47098.0,0.1474]
[1641170162520,4.97955123,47100.0,47099.0,0.28374924]
[1641170162720,4.97955123,47100.0,47099.0,0.33114924]
[1641170162923,4.97962426,47100.0,47099.0,0.33114924]
[1641170164224,4.97462426,47100.0,47099.0,0.33114924]
[1641170167970,4.97462426,47100.0,47099.0,0.32706755]
[1641170169509,4.97462426,47100.0,47099.0,0.67102743]
[1641170171813,4.74891858,47100.0,47099.0,1.49102743]
[1641170172114,4.64797312,47100.0,47099.0,2.61816835]
[1641170172311,0.90803895,47100.0,47099.0,2.61816835]
[1641170172511,0.90803895,47100.0,47099.0,2.89351635]
[1641170172712,0.48357995,47100.0,47099.0,2.89351635]
[1641170172914,0.05914395,47100.0,47099.0,3.69603769]
[1641170173112,0.0081531,47108.0,47104.0,0.30470524]
[1641170173375,0.59009879,47110.0,47109.0,2.261]
[1641170173575,0.59009879,47112.0,47109.0,2.29190303]
[1641170173774,0.59009879,47112.0,47111.0,2.13031421]
[1641170173975,0.59009879,47112.0,47111.0,0.99771421]
[1641170174176,0.59009879,47112.0,47111.0,1.85905469]
[1641170174177,0.0002191,47112.0,47111.0,1.85905469]
[1641170174380,0.0002191,47112.0,47111.0,1.91210569]
[1641170174977,0.0002191,47112.0,47111.0,1.81210569]
[1641170175279,0.0002191,47112.0,47111.0,1.86082643]
[1641170176178,0.0002191,47112.0,47111.0,1.91082643]
[1641170177523,0.04827241,47117.0,47112.0,1.18]
[1641170177725,0.04827241,47117.0,47114.0,0.106108]
[1641170178030,7.303e-05,47116.0,47115.0,0.64497961]
[1641170178227,7.303e-05,47116.0,47115.0,0.69497961]
[1641170178427,7.303e-05,47116.0,47115.0,0.79497961]
[1641170179825,7.303e-05,47116.0,47115.0,0.74497961]
[1641170185227,7.303e-05,47116.0,47115.0,1.38327008]
[1641170185428,7.303e-05,47116.0,47115.0,2.50427008]
[1641170185626,7.303e-05,47116.0,47115.0,2.58913001]
[1641170186027,7.303e-05,47116.0,47115.0,2.50427008]
[1641170186329,7.303e-05,47116.0,47115.0,2.58913001]
[1641170186731,7.303e-05,47116.0,47115.0,1.46813001]
[1641170188861,7.303e-05,47116.0,47115.0,1.38327008]
[1641170192421,7.303e-05,47116.0,47115.0,2.50427008]
[1641170198563,7.303e-05,47116.0,47115.0,2.55427008]
[1641170198765,7.303e-05,47116.0,47115.0,2.50827961]
[1641170198966,7.303e-05,47116.0,47115.0,2.59313954]
[1641170199165,7.303e-05,47116.0,47115.0,2.60817961]
[1641170199620,0.00013752,47116.0,47115.0,2.185923]
[1641170200518,0.00013752,47116.0,47115.0,2.135923]
[1641170201722,0.00013752,47116.0,47115.0,2.295058]
[1641170201919,0.00013752,47116.0,47115.0,2.345058]
[1641170207825,6.449e-05,47116.0,47115.0,2.345058]
[1641170212385,6.449e-05,47116.0,47115.0,1.174058]
[1641170212784,6.449e-05,47116.0,47115.0,1.074058]
[1641170213482,6.449e-05,47116.0,47115.0,0.434358]
[1641170213683,0.25022277,47115.0,47114.0,0.053054]
[1641170218383,0.25022277,47115.0,47113.0,0.05]
[1641170218580,0.25022277,47115.0,47111.0,0.00816885]
[1641170218581,0.356353,47115.0,47111.0,0.00816885]
[1641170218881,0.00127626,47112.0,47111.0,0.00816885]
[1641170219080,1.40677426,47112.0,47111.0,0.00816885]
[1641170219279,1.68030743,47112.0,47111.0,6.885e-05]
[1641170220081,0.62030743,47112.0,47111.0,6.885e-05]
[1641170220280,0.0530734,47111.0,47108.0,0.00815]
[1641170220581,0.33256521,47109.0,47108.0,0.00815]
[1641170220780,1.02751608,47109.0,47108.0,0.00815]
[1641170220984,1.02751608,47109.0,47108.0,0.00822303]
[1641170227276,1.02880328,47109.0,47108.0,0.00822303]
[1641170228475,0.67935041,47109.0,47108.0,0.00822303]
[1641170229729,0.33385241,47109.0,47108.0,0.00822303]
[1641170235389,0.67935041,47109.0,47108.0,0.00822303]
[1641170237616,0.73242941,47109.0,47108.0,0.00822303]
[1641170239218,0.67935041,47109.0,47108.0,0.00822303]
[1641170239816,0.33385241,47109.0,47108.0,0.00822303]
[1641170240217,0.67935041,47109.0,47108.0,0.00822303]
[1641170241069,0.33385241,47109.0,47108.0,0.00822303]
[1641170241673,0.67806321,47109.0,47108.0,0.00822303]
[1641170241870,0.33256521,47109.0,47108.0,0.00822303]
[1641170242971,0.0530734,47111.0,47108.0,0.00822303]
[1641170243369,0.0530734,47111.0,47108.0,0.06129103]
[1641170243570,0.0530734,47111.0,47108.0,0.00822303]
[1641170244174,0.36781375,47111.0,47108.0,0.00822303]
[1641170247017,0.0530734,47111.0,47108.0,0.36271319]
[1641170247215,0.0530734,47111.0,47109.0,0.0474]
[1641170247814,0.0530734,47111.0,47110.0,0.275261]
[1641170248016,0.1061201,47115.0,47110.0,0.322661]
[1641170248017,0.05305827,47113.0,47110.0,0.322661]
[1641170248280,0.05867,47116.0,47112.0,0.12339248]
[1641170248484,0.05867,47116.0,47113.0,0.0474]
[1641170249283,0.05305774,47115.0,47113.0,0.153515]
[1641170249489,0.05305774,47115.0,47114.0,0.39862348]
[1641170250883,6.367e-05,47115.0,47114.0,0.39862348]
[1641170251482,6.367e-05,47115.0,47114.0,0.71530838]
[1641170251685,6.367e-05,47115.0,47114.0,0.76836338]
[1641170251884,6.367e-05,47115.0,47114.0,0.81576338]
[1641170252331,6.367e-05,47115.0,47114.0,0.91576338]
[1641170252931,6.367e-05,47115.0,47114.0,0.96576338]
[1641170253127,6.367e-05,47115.0,47114.0,1.2282324]
[1641170254134,6.367e-05,47115.0,47114.0,0.64907848]
[1641170254330,6.367e-05,47115.0,47114.0,0.525686]
[1641170254527,6.367e-05,47115.0,47114.0,0.375686]
[1641170254730,6.367e-05,47115.0,47114.0,0.275231]
[1641170254928,6.367e-05,47115.0,47110.0,0.00817608]
[1641170255127,0.05306782,47113.0,47110.0,0.00817608]
[1641170255328,0.05306782,47113.0,47111.0,0.275249]
[1641170256178,0.05306782,47113.0,47106.0,0.36613327]
[1641170256380,0.05306782,47113.0,47111.0,0.053065]
[1641170257179,0.05306782,47113.0,47112.0,2.44686942]
[1641170257383,0.05306782,47113.0,47112.0,2.72211442]
[1641170257582,0.05306782,47113.0,47112.0,0.275245]
[1641170257780,0.05306782,47113.0,47111.0,0.053065]
[1641170261221,6.162e-05,47112.0,47111.0,0.053065]
[1641170261920,6.162e-05,47112.0,47111.0,0.100465]
[1641170262121,6.162e-05,47112.0,47111.0,0.425716]
[1641170262322,6.162e-05,47112.0,47111.0,0.46060334]
[1641170262524,6.162e-05,47112.0,47111.0,0.61060334]
[1641170262922,6.162e-05,47112.0,47111.0,2.78334864]
[1641170263125,6.162e-05,47112.0,47111.0,2.87310443]
[1641170263975,0.0001,47120.0,47117.0,1.203045]
[1641170264172,0.0001,47120.0,47117.0,3.46234648]
[1641170264570,0.0001,47120.0,47119.0,0.77610305]
[1641170264771,0.0001,47120.0,47119.0,0.82350305]
[1641170264971,0.0001,47120.0,47119.0,0.97350305]
[1641170266173,0.0001,47120.0,47119.0,1.02654505]
[1641170270625,0.0001,47120.0,47119.0,1.02779936]
[1641170270891,0.0001,47120.0,47119.0,2.74109936]
[1641170271992,0.00016216,47120.0,47119.0,2.74109936]
[1641170274547,0.00016216,47120.0,47119.0,2.74009936]
[1641170276538,0.00016216,47120.0,47119.0,1.61909936]
[1641170276940,0.00016216,47120.0,47119.0,2.74009936]
[1641170280573,0.00016216,47120.0,47119.0,1.61909936]
[1641170281375,0.00016216,47120.0,47119.0,2.74009936]
[1641170281675,0.00016216,47120.0,47119.0,2.94009936]
[1641170284143,0.00016216,47120.0,47119.0,3.04009936]
[1641170284538,0.00016216,47120.0,47119.0,2.94009936]
[1641170284942,0.00016216,47120.0,47119.0,3.04009936]
[1641170285643,0.00016216,47120.0,47119.0,2.94009936]
[1641170291929,0.00016216,47120.0,47119.0,2.74009936]
[1641170294371,0.00016216,47120.0,47119.0,1.61909936]
[1641170295777,0.00016216,47120.0,47119.0,1.56909936]
[1641170298134,0.00016216,47120.0,47119.0,1.42009936]
[1641170298735,0.00016216,47120.0,47119.0,1.41884505]
[1641170299537,0.00016216,47120.0,47119.0,1.56884505]
[1641170299736,0.00016216,47120.0,47119.0,1.61884505]
[1641170300139,0.00016216,47120.0,47119.0,1.51884505]
[1641170300541,0.00016216,47120.0,47119.0,1.61884505]
[1641170300790,0.00016216,47120.0,47119.0,1.56884505]
[1641170301989,0.00016216,47120.0,47119.0,2.68984505]
[1641170302994,0.00016216,47120.0,47119.0,1.56884505]
[1641170303794,0.00016216,47120.0,47119.0,1.61884505]
[1641170308391,0.00016216,47120.0,47119.0,0.375638]
[1641170309396,0.00016216,47120.0,47119.0,0.49903048]
[1641170310590,0.00016216,47120.0,47119.0,0.100442]
[1641170314039,0.34024252,47120.0,47119.0,0.053042]
[1641170314340,0.05431302,47119.0,47115.0,0.00817599]
[1641170314542,0.38589831,47118.0,47115.0,0.00817599]
[1641170314738,0.33406063,47117.0,47115.0,0.00817599]
[1641170315138,0.81007303,47116.0,47115.0,0.00817599]
[1641170315338,7.303e-05,47116.0,47115.0,0.00817599]
[1641170316186,7.303e-05,47116.0,47114.0,0.053061]
[1641170316585,0.05313263,47116.0,47114.0,0.053061]
[1641170317889,0.10619263,47116.0,47114.0,0.053061]
[1641170327125,0.15619263,47116.0,47114.0,0.053061]
[1641170327530,0.10619263,47116.0,47114.0,0.053061]
[1641170327928,0.10619263,47116.0,47114.0,0.048061]
[1641170328827,0.10619263,47116.0,47112.0,0.053063]
[1641170329030,0.05306311,47114.0,47112.0,0.053063]
[1641170329229,0.10612143,47113.0,47112.0,0.053063]
[1641170334541,0.10612143,47113.0,47112.0,0.3283]
[1641170337345,0.05306311,47114.0,47112.0,0.4283]
[1641170337544,0.0531231,47116.0,47113.0,0.275238]
[1641170337744,0.0531231,47116.0,47114.0,2.54061909]
[1641170337947,0.0531231,47116.0,47115.0,0.275224]
[1641170338144,0.0531231,47116.0,47115.0,0.322624]
[1641170338589,0.0531231,47116.0,47115.0,0.422624]
[1641170340790,0.0531231,47116.0,47115.0,0.1474]
[1641170341191,0.0531231,47116.0,47115.0,0.0474]
[1641170345029,0.05305007,47116.0,47115.0,0.0474]
[1641170377390,0.03805007,47116.0,47115.0,0.0474]
[1641170395636,0.03805007,47116.0,47115.0,0.0424]
[1641170396036,0.03805007,47116.0,47114.0,0.053051]
[1641170409644,0.03805007,47116.0,47115.0,0.0474]
[1641170409839,0.03805007,47116.0,47115.0,0.322623]
[1641170410039,7.303e-05,47116.0,47115.0,1.014923]
[1641170410438,7.303e-05,47116.0,47115.0,1.26618642]
[1641170410643,7.303e-05,47116.0,47115.0,3.48810969]
[1641170410839,0.0001,47120.0,47115.0,3.48810969]
[1641170410840,0.0001,47120.0,47117.0,0.2]
[1641170411040,0.0001,47120.0,47119.0,2.82310079]
[1641170411240,0.0001,47120.0,47119.0,2.41050079]
[1641170411440,0.00017303,47120.0,47119.0,2.51050079]
[1641170411842,0.00017303,47120.0,47119.0,2.84477753]
[1641170412641,0.00017303,47120.0,47119.0,2.89781653]
[1641170413041,0.00017303,47120.0,47119.0,1.52681653]
[1641170413299,0.00017303,47120.0,47119.0,1.42681653]
[1641170414393,0.00017303,47120.0,47119.0,1.47681653]
[1641170414591,0.00017303,47120.0,47119.0,1.57681653]
[1641170414992,0.00017303,47120.0,47119.0,1.62681653]
[1641170415995,0.00017303,47120.0,47119.0,1.57681653]
[1641170417040,0.00017303,47120.0,47119.0,1.62681653]
[1641170417837,0.00017303,47120.0,47119.0,1.57681653]
[1641170419336,0.00017303,47120.0,47119.0,1.45342405]
[1641170420537,0.00017303,47120.0,47119.0,1.61214291]
[1641170420785,0.00017303,47120.0,47119.0,1.61666103]
[1641170421089,0.00017303,47120.0,47119.0,1.57681653]
[1641170422288,0.00017303,47120.0,47119.0,1.11914731]
[1641170422489,0.00017303,47120.0,47119.0,1.43887617]
[1641170423390,0.00017303,47120.0,47119.0,2.68326865]
[1641170423789,0.00017303,47120.0,47119.0,1.56226865]
[1641170425145,0.00017303,47120.0,47119.0,2.68326865]
[1641170425746,0.00017303,47120.0,47119.0,1.56226865]
[1641170431397,0.00017303,47120.0,47119.0,2.68326865]
[1641170431596,0.00017303,47120.0,47119.0,2.88326865]
[1641170433632,0.00017303,47120.0,47119.0,2.68326865]
[1641170435436,0.00017303,47120.0,47119.0,2.88326865]
[1641170436898,0.00017303,47120.0,47119.0,2.83326865]
[1641170438799,0.00017303,47120.0,47119.0,2.88326865]
[1641170439649,0.00017303,47120.0,47119.0,2.36353979]
[1641170441350,0.0001,47120.0,47119.0,2.36353979]
[1641170441753,0.0001,47120.0,47119.0,2.31353979]
[1641170443598,0.0001,47120.0,47119.0,2.36035123]
[1641170443799,0.0001,47120.0,47119.0,2.35891224]
[1641170443998,0.0001,47120.0,47119.0,2.31353979]
[1641170444799,0.0001,47120.0,47119.0,2.36353979]
[1641170446805,0.0001,47120.0,47119.0,2.51353979]
[1641170447048,0.0001,47120.0,47119.0,2.30853979]
[1641170449845,0.0001,47120.0,47119.0,2.35853979]
[1641170451382,0.00016216,47120.0,47119.0,2.35853979]
[1641170451782,0.00016216,47120.0,47119.0,2.40853979]
[1641170454644,0.00016216,47120.0,47119.0,0.37184731]
[1641170454950,0.00141176,47120.0,47119.0,0.27140831]
[1641170455141,0.00141176,47120.0,47115.0,0.84587957]
[1641170455341,0.05306009,47118.0,47115.0,0.84587957]
[1641170455642,0.66653157,47117.0,47115.0,0.84587957]
[1641170456242,0.66653157,47117.0,47115.0,0.83773]
[1641170457142,0.31869642,47116.0,47115.0,0.83773]
[1641170458581,0.66653157,47117.0,47115.0,0.83773]
[1641170461583,0.71959357,47117.0,47115.0,0.83773]
[1641170462047,0.3201391,47116.0,47115.0,0.83773]
[1641170465640,0.66653157,47117.0,47115.0,0.83773]
[1641170465890,0.66653157,47117.0,47115.0,0.890789]
[1641170466190,0.37800278,47117.0,47115.0,0.890789]
[1641170466691,0.35300278,47117.0,47115.0,0.890789]
[1641170467093,0.023061,47117.0,47115.0,0.890789]
[1641170467698,0.05306009,47118.0,47115.0,3.72652118]
[1641170467899,0.05306009,47118.0,47117.0,0.271425]
[1641170468094,0.05306009,47118.0,47117.0,0.318827]
[1641170468495,0.05306009,47118.0,47117.0,0.54221948]
[1641170470351,0.05304956,47119.0,47117.0,0.54221948]
[1641170470556,0.05304956,47119.0,47118.0,0.39481348]
[1641170470751,0.05304956,47119.0,47118.0,0.44221348]
[1641170470952,0.05304956,47119.0,47118.0,0.54221348]
[1641170471151,0.0001,47120.0,47118.0,0.54221348]
[1641170471352,0.05314844,47120.0,47119.0,0.39480648]
[1641170471551,0.05314844,47120.0,47119.0,0.44220648]
[1641170471951,0.05314844,47120.0,47119.0,0.49525448]
[1641170472551,0.0532106,47120.0,47119.0,0.49525448]
[1641170473396,0.0532106,47120.0,47119.0,0.22384048]
[1641170475399,0.0532106,47120.0,47119.0,0.49525348]
[1641170476399,0.0532106,47120.0,47119.0,0.59525348]
[1641170476802,0.0532106,47120.0,47119.0,0.64525348]
[1641170477536,0.0532106,47120.0,47119.0,0.59525348]
[1641170477936,0.0532106,47120.0,47119.0,0.49525348]
[1641170478536,0.0532106,47120.0,47119.0,0.59525348]
[1641170479437,0.00016216,47120.0,47119.0,0.59525348]
[1641170481091,0.00016216,47120.0,47119.0,0.64525348]
[1641170486041,0.00016216,47120.0,47119.0,0.69525348]
[1641170486638,0.00016216,47120.0,47119.0,0.64525348]
[1641170488302,0.00016216,47120.0,47119.0,0.68717205]
[1641170490002,0.00016216,47120.0,47119.0,0.63717205]
[1641170491804,0.00016216,47120.0,47119.0,0.68717205]
[1641170495901,0.00016216,47120.0,47119.0,0.63717205]
[1641170497205,0.00016216,47120.0,47119.0,0.59525348]
[1641170497605,0.00016216,47120.0,47119.0,0.64525348]
[1641170497806,0.00016216,47120.0,47119.0,2.55981164]
[1641170498006,0.01379301,47125.0,47119.0,2.55981164]
[1641170498007,0.01379301,47125.0,47120.0,1.17]
[1641170498209,0.01379301,47125.0,47124.0,4.55906325]
[1641170498505,0.01379301,47125.0,47124.0,5.66696068]
[1641170498706,0.01379301,47125.0,47124.0,5.81696068]
[1641170499880,0.01379301,47125.0,47124.0,6.16696068]
[1641170500278,0.00562,47125.0,47124.0,6.16696068]
[1641170500479,0.00562,47125.0,47124.0,5.61696068]
[1641170501978,0.00562,47125.0,47124.0,5.81696068]
[1641170502781,0.00562,47125.0,47124.0,6.16696068]
[1641170504402,0.00827292,47130.0,47126.0,0.2]
[1641170504597,0.00827292,47130.0,47129.0,2.10803648]
[1641170504799,0.00827292,47130.0,47129.0,2.25846548]
[1641170504999,0.00827292,47130.0,47129.0,2.35846548]
[1641170506301,0.0001,47130.0,47129.0,2.35846548]
[1641170506501,0.0001,47130.0,47129.0,2.40846548]
[1641170506700,0.00887283,47135.0,47130.0,0.89]
[1641170506902,0.00887283,47135.0,47134.0,0.27236939]
[1641170507144,0.00887283,47135.0,47134.0,0.37279739]
[1641170507645,0.00887283,47135.0,47134.0,0.47279739]
[1641170508244,0.0007,47135.0,47134.0,0.47279739]
[1641170513391,0.00076879,47135.0,47134.0,0.47279739]
[1641170513791,0.04879894,47137.0,47136.0,0.271295]
[1641170513990,0.04879894,47137.0,47136.0,0.31975538]
[1641170514189,0.04879894,47137.0,47136.0,0.41975538]
[1641170515054,0.04879894,47137.0,47136.0,0.31975538]
[1641170515351,0.04879894,47137.0,47136.0,0.04846038]
[1641170518704,0.05502564,47139.0,47136.0,0.04846038]
[1641170518903,0.05502564,47139.0,47138.0,0.00106038]
[1641170519103,0.05502564,47139.0,47138.0,0.04846038]
[1641170523741,0.05509145,47139.0,47138.0,0.04846038]
[1641170524143,0.08681392,47139.0,47138.0,0.04846038]
[1641170533891,0.07181392,47139.0,47138.0,0.04846038]
[1641170535492,0.04009145,47139.0,47138.0,0.04846038]
[1641170535691,0.35069366,47139.0,47138.0,0.0474]
[1641170535896,0.35184002,47139.0,47138.0,0.0474]
[1641170536092,0.04009145,47139.0,47138.0,0.0474]
[1641170536495,0.35788313,47139.0,47138.0,0.0474]
[1641170537353,0.04009145,47139.0,47138.0,0.0474]
[1641170540156,0.35152487,47139.0,47138.0,0.0474]
[1641170540356,0.04009145,47139.0,47138.0,0.0474]
[1641170550710,0.37340959,47139.0,47134.0,0.00817268]
[1641170550911,0.10607737,47138.0,47134.0,0.00817268]
[1641170551109,0.00128496,47136.0,47134.0,0.00817268]
[1641170551312,1.185456,47135.0,47134.0,0.00817268]
[1641170551515,1.64516075,47135.0,47134.0,0.00817268]
[1641170551713,0.3042428,47133.0,47127.0,0.63658]
[1641170551912,0.90127381,47128.0,47127.0,0.63658]
[1641170552174,1.16,47127.0,47115.0,0.053059]
[1641170552376,0.001274,47121.0,47108.0,0.00815]
[1641170552675,0.001274,47121.0,47109.0,0.271471]
[1641170552676,0.053061,47116.0,47109.0,0.271471]
[1641170552873,0.10612194,47114.0,47109.0,0.27159881]
[1641170553073,0.05306154,47113.0,47109.0,0.27159881]
[1641170554079,0.10612361,47112.0,47111.0,0.053061]
[1641170554475,0.10612361,47112.0,47111.0,0.05315229]
[1641170554677,0.10612294,47113.0,47111.0,0.05315229]
[1641170555076,0.10612294,47113.0,47112.0,7.303e-05]
[1641170557097,0.0530614,47113.0,47112.0,7.303e-05]
[1641170558799,0.38090263,47113.0,47112.0,7.303e-05]
[1641170566606,0.38218831,47113.0,47112.0,7.303e-05]
[1641170570811,0.05434708,47113.0,47112.0,7.303e-05]
[1641170571211,0.37454759,47113.0,47110.0,0.00010955]
[1641170571414,0.42735887,47113.0,47110.0,0.00010955]
[1641170571612,0.05434895,47113.0,47110.0,0.00010955]
[1641170571813,0.05306327,47113.0,47111.0,0.0474]
[1641170572011,0.29428114,47120.0,47112.0,0.321464]
[1641170572012,7.303e-05,47120.0,47112.0,0.321464]
[1641170572217,7.303e-05,47120.0,47113.0,0.0474]
[1641170572411,7.303e-05,47120.0,47113.0,0.0974]
[1641170572611,7.303e-05,47120.0,47117.0,2.94008751]
[1641170572812,7.303e-05,47120.0,47119.0,0.96480648]
[1641170573013,7.303e-05,47120.0,47119.0,0.85778318]
[1641170573212,7.303e-05,47120.0,47119.0,0.95778318]
[1641170573613,7.303e-05,47120.0,47119.0,1.01208289]
[1641170573811,7.303e-05,47120.0,47119.0,1.06208289]
[1641170574850,7.303e-05,47120.0,47119.0,0.86208289]
[1641170575050,7.303e-05,47120.0,47119.0,0.37311371]
[1641170575247,7.303e-05,47120.0,47119.0,0.371862]
[1641170576051,7.303e-05,47120.0,47119.0,0.49525448]
[1641170576649,7.303e-05,47120.0,47119.0,0.59525448]
[1641170577248,7.303e-05,47120.0,47119.0,0.64525448]
[1641170581097,7.303e-05,47120.0,47119.0,0.471862]
[1641170581299,7.303e-05,47120.0,47119.0,0.371862]
[1641170582860,0.05304892,47121.0,47119.0,0.371862]
[1641170583460,0.64357894,47121.0,47119.0,0.371862]
[1641170584463,0.64357894,47121.0,47119.0,0.100448]
[1641170584860,0.64357894,47121.0,47119.0,0.0474]
[1641170586132,0.64357894,47121.0,47119.0,0.100455]
[1641170587106,0.05304892,47121.0,47119.0,0.053055]
[1641170587908,0.59053002,47122.0,47120.0,0.0474]
[1641170588107,0.59053002,47122.0,47121.0,0.05305]
[1641170588304,0.59053002,47122.0,47121.0,0.10045]
[1641170588705,0.00819091,47124.0,47121.0,0.10045]
[1641170588906,0.05304977,47123.0,47121.0,0.10045]
[1641170589208,0.05317757,47123.0,47121.0,0.10045]
[1641170592874,0.05317757,47123.0,47121.0,0.0474]
[1641170593081,0.05305561,47122.0,47119.0,0.103055]
[1641170593314,0.10611061,47122.0,47115.0,0.0474]
[1641170593513,0.42686212,47121.0,47115.0,0.0474]
[1641170593916,0.42686212,47121.0,47115.0,0.05306]
[1641170593917,7.303e-05,47120.0,47115.0,0.05306]
[1641170594714,0.2122416,47119.0,47115.0,0.05306]
[1641170594915,0.15918232,47119.0,47115.0,0.05306]
[1641170595623,0.05313503,47120.0,47112.0,7.303e-05]
[1641170595624,0.31599555,47118.0,47112.0,7.303e-05]
[1641170595815,0.053064,47116.0,47112.0,7.303e-05]
[1641170596015,0.15919193,47117.0,47112.0,7.303e-05]
[1641170596215,0.15919193,47117.0,47111.0,0.05009129]
[1641170596414,0.15919193,47117.0,47112.0,7.303e-05]
[1641170596916,0.05306411,47113.0,47111.0,9.129e-05]
[1641170597147,0.05306411,47113.0,47111.0,0.05315529]
[1641170597549,0.05306411,47113.0,47112.0,7.303e-05]
[1641170600152,0.37105893,47113.0,47112.0,7.303e-05]
[1641170600452,0.05306411,47113.0,47112.0,7.303e-05]
[1641170600651,0.31190731,47114.0,47112.0,7.303e-05]
[1641170601126,0.05305962,47115.0,47112.0,7.303e-05]
[1641170601525,0.05305962,47115.0,47113.0,0.05306]
[1641170601725,0.87775572,47120.0,47113.0,0.05306]
[1641170601926,0.05305726,47117.0,47113.0,0.05306]
[1641170602425,0.05306,47117.0,47113.0,0.05306]
[1641170602828,0.05305846,47116.0,47113.0,0.05306]
[1641170605161,0.10611946,47116.0,47113.0,0.05306]
[1641170605362,0.05305846,47116.0,47114.0,2.721244]
[1641170605562,0.05305846,47116.0,47115.0,0.271437]
[1641170605762,0.05305846,47116.0,47114.0,0.053062]
[1641170606564,1.36724907,47120.0,47114.0,0.053062]
[1641170606764,0.77671905,47120.0,47114.0,0.053062]
[1641170606965,7.303e-05,47120.0,47117.0,2.27780435]
[1641170607166,7.303e-05,47120.0,47118.0,0.0474]
[1641170607365,7.303e-05,47120.0,47119.0,0.05305]
[1641170607563,7.303e-05,47120.0,47119.0,0.421868]
[1641170607965,7.303e-05,47120.0,47119.0,0.521868]
[1641170609109,7.303e-05,47120.0,47119.0,1.09329119]
[1641170609311,7.303e-05,47120.0,47119.0,0.82609099]
[1641170609810,7.303e-05,47120.0,47119.0,1.0787189]
[1641170610210,7.303e-05,47120.0,47119.0,0.82609099]
[1641170610813,7.303e-05,47120.0,47119.0,0.77609099]
[1641170611612,7.303e-05,47120.0,47119.0,0.471868]
[1641170613957,7.303e-05,47120.0,47119.0,0.59526048]
[1641170615254,7.303e-05,47120.0,47119.0,0.471868]
[1641170616393,7.303e-05,47120.0,47119.0,0.59526048]
[1641170619560,7.303e-05,47120.0,47119.0,0.85823562]
[1641170619759,7.303e-05,47120.0,47119.0,0.59526048]
[1641170621363,7.303e-05,47120.0,47119.0,0.85385707]
[1641170622164,7.303e-05,47120.0,47119.0,0.90385707]
[1641170622363,7.303e-05,47120.0,47119.0,0.99996646]
[1641170623163,7.303e-05,47120.0,47119.0,1.5935491]
[1641170623814,0.00819091,47124.0,47119.0,1.5935491]
[1641170624013,0.00819091,47124.0,47123.0,0.35625323]
[1641170624214,0.00819091,47124.0,47123.0,0.75804529]
[1641170624415,0.00819091,47124.0,47123.0,0.85804529]
[1641170626113,0.00819091,47124.0,47123.0,0.91108429]
[1641170626314,0.59053002,47135.0,47129.0,0.23578071]
[1641170626514,0.59053002,47135.0,47130.0,0.0474]
[1641170626714,0.00032864,47134.0,47130.0,0.0474]
[1641170627151,0.00031038,47133.0,47130.0,0.0474]
[1641170627653,0.00029212,47132.0,47130.0,0.0474]
[1641170627850,0.00029212,47132.0,47131.0,0.05304]
[1641170628051,0.64356912,47135.0,47131.0,0.10044]
[1641170628452,0.05336864,47134.0,47131.0,0.10044]
[1641170628852,0.00031038,47133.0,47131.0,0.10044]
[1641170629354,0.00029212,47132.0,47131.0,0.10044]
[1641170629751,0.27029212,47132.0,47131.0,0.10044]
[1641170629951,0.00029212,47132.0,47131.0,0.10044]
[1641170631918,0.00029212,47132.0,47131.0,0.371767]
[1641170632920,0.00029212,47132.0,47131.0,0.10044]
[1641170635954,0.00029212,47132.0,47131.0,0.42148405]
[1641170636156,0.0003522,47132.0,47131.0,1.16962956]
[1641170636360,0.00022013,47132.0,47131.0,1.17092192]
[1641170636554,0.00022013,47132.0,47131.0,1.22092192]